[Event "36th National Sub Junior 2019"]
[Site "Tiruchengode"]
[Date "2019.07.17"]
[Round "11.3"]
[White "Divyabharathi Masanam"]
[Black "Mrudul Dehankar"]
[Result "0-1"]
[ECO "B84"]
[WhiteElo "1730"]
[BlackElo "2074"]
[Annotator "NA"]
[PlyCount "98"]
[EventDate "2019.07.09"]
[EventCountry "IND"]
[SourceTitle "playchess.com"]
[Source "ChessBase"]
[SourceQuality "1"]
[TimeControl "5400+30"]

1. e4 {[%emt 0:00:21]} c5 {[%emt 0:00:00]} 2. Nf3 {[%emt 0:01:10]} d6 {[%emt 0:00:00]} 3. d4 {[%emt 0:01:06]} cxd4 {[%emt 0:00:06]} 4. Nxd4 {[%emt 0:00:04]} Nf6 {[%emt 0:00:05]} 5. Nc3 {[%emt 0:00:05]} a6 {[%emt 0:00:03]} 6. Be3 {[%emt 0:03:22]} e6 {[%emt 0:00:59]} 7. a4 {[%emt 0:03:43]} Qc7 {[%emt 0:02:30]} 8. Be2 {[%emt 0:02:03]} Be7 {[%emt 0:02:31]} 9. O-O {[%emt 0:01:53]} b6 {[%emt 0:01:16]} 10. f4 {[%emt 0:05:17]} Bb7 {[%emt 0:03:25]} 11. Bf3 {[%emt 0:00:30]} Nbd7 12. Qe2 {[%emt 0:02:11]} O-O {[%emt 0:02:06]} 13. Rfd1 {[%emt 0:03:40] B84: Sicilian Scheveningen: 6 Be2 a6, lines without early Be3} (13. Bf2 Rfe8 14. g4 Nc5 15. e5 Nd5 16. Nxd5 exd5 17. e6 Bf6 18. exf7+ Qxf7 19. Qd1 Ne4 20. g5 Bxd4 21. Bxd4 Qxf4 22. Bxe4 Qxe4 {½-½ (32) Kulaots,K (2564)-Shankland,S (2633) Las Vegas 2014}) 13... Rfd8 {[%emt 0:18:25]} 14. Bf2 $146 {[%emt 0:09:48]} ({Predecessor:} 14. Kh1 Rac8 15. Nb3 Nc5 16. Nxc5 dxc5 17. Qf2 Rxd1+ 18. Rxd1 Nd7 19. e5 Rd8 20. Ne4 Bxe4 21. Bxe4 {1-0 (54) Ruiz Planas,A (2110)-Coppulo Cerda,A (1895) Malgrat del Mar 1997}) 14... Nc5 {[%emt 0:23:32]} 15. Bg3 {[%emt 0:09:49]} Rac8 {[%emt 0:08:06]} 16. Qe3 {[%emt 0:08:32]} g6 {[%emt 0:09:31]} 17. Kh1 {[%emt 0:05:52]} Ne8 {[%emt 0:02:06]} 18. e5 {[%emt 0:05:39]} Ng7 {[%emt 0:04:36]} 19. Bf2 {[%emt 0:12:54]} Bxf3 {[%emt 0:06:17]} 20. Nxf3 {[%emt 0:00:10]} d5 {[%emt 0:06:39]} 21. Nd4 {[%emt 0:03:56]} Nd7 {[%emt 0:02:56]} 22. g4 {[%emt 0:03:55]} Bc5 {[%emt 0:02:22]} 23. Qe2 {[%emt 0:02:54]} Bxd4 {[%emt 0:02:58]} 24. Rxd4 {[%emt 0:00:15]} f6 {[%emt 0:00:38]} 25. Bg3 {[%emt 0:04:41]} fxe5 {[%emt 0:00:11]} 26. fxe5 {[%emt 0:00:06]} Qc5 {[%emt 0:01:01]} 27. Bf2 {[%emt 0:01:09]} Qe7 {[%emt 0:00:31]} 28. Bg3 {[%emt 0:00:50]} Nb8 {[%emt 0:00:32]} 29. Rf1 {[%emt 0:01:53]} Rf8 {[%emt 0:00:29]} 30. Rdf4 {[%emt 0:01:08]} g5 {[%emt 0:00:32]} 31. Rf6 {[%emt 0:00:46]} Nd7 {[%emt 0:00:04]} 32. Rxf8+ {[%emt 0:00:44]} Rxf8 {[%emt 0:00:05]} 33. Qxa6 {[%emt 0:00:50]} Qb4 {[%emt 0:01:07]} 34. Rxf8+ {[%emt 0:01:11]} Nxf8 {[%emt 0:00:13]} 35. Qb5 {[%emt 0:00:17]} Qxg4 {[%emt 0:00:45]} 36. Qe2 {[%emt 0:03:11]} Qb4 {[%emt 0:00:42]} 37. Qb5 {[%emt 0:00:30]} Qd4 {[%emt 0:00:06]} 38. Qe2 $17 {[%emt 0:01:27]} (38. Qd3 $11 Qg4) 38... Nf5 {[%emt 0:00:36]} 39. Bf2 {[%emt 0:00:09]} Qb4 {[%emt 0:00:38]} 40. Qb5 {[%emt 0:00:34]} Qf4 {[%emt 0:00:08]} 41. Qxb6 {[%emt 0:00:58]} d4 {[%emt 0:00:13]} 42. Nd1 {[%emt 0:00:54]} Qf3+ {[%emt 0:00:05]} 43. Kg1 {[%emt 0:00:02]} Qxd1+ {[%emt 0:00:06]} 44. Kg2 {[%emt 0:00:03]} Qe2 {[%emt 0:00:30]} 45. Kg1 {[%emt 0:01:02]} Ne3 {[%emt 0:00:17]} 46. Bxe3 {[%emt 0:00:08]} dxe3 {[%emt 0:00:02]} 47. Qb5 {[%emt 0:00:27]} Qf2+ {[%emt 0:00:07]} 48. Kh1 {[%emt 0:00:04]} e2 {[%emt 0:00:04]} 49. Qb4 {[%emt 0:00:39]} Qf1# {[%emt 0:00:03]} 0-1

[Event "36th National Sub Junior 2019"]
[Site "Tiruchengode"]
[Date "2019.07.17"]
[Round "11.4"]
[White "Rindhiya V"]
[Black "Sai Divya M"]
[Result "0-1"]
[ECO "B26"]
[WhiteElo "1573"]
[BlackElo "1784"]
[Annotator "NA"]
[PlyCount "136"]
[EventDate "2019.07.09"]
[EventCountry "IND"]
[SourceTitle "playchess.com"]
[Source "ChessBase"]
[SourceQuality "1"]
[TimeControl "5400+30"]

1. e4 {[%emt 0:00:00]} c5 {[%emt 0:00:00]} 2. Nc3 {[%emt 0:00:00]} Nc6 {[%emt 0:00:07]} 3. g3 {[%emt 0:00:00]} g6 {[%emt 0:00:49]} 4. Bg2 {[%emt 0:00:00]} Bg7 {[%emt 0:00:07]} 5. Nge2 {[%emt 0:00:00]} d6 {[%emt 0:01:45]} 6. d3 {[%emt 0:00:00]} e6 {[%emt 0:01:08]} 7. Be3 {[%emt 0:00:00]} Nd4 {[%emt 0:03:38]} 8. Qd2 {[%emt 0:00:12]} Ne7 {[%emt 0:01:35]} 9. Nd1 {[%emt 0:00:12]} Qc7 {[%emt 0:10:33]} 10. c3 {[%emt 0:00:31]} Ndc6 {[%emt 0:01:29]} 11. O-O {[%emt 0:00:22]} O-O {[%emt 0:01:40]} 12. Bh6 {[%emt 0:05:42]} b6 {[%emt 0:00:30]} 13. Bxg7 {[%emt 0:00:30]} Kxg7 {[%emt 0:02:20]} 14. Ne3 {[%emt 0:03:44]} Bb7 {[%emt 0:03:06]} 15. Rae1 {[%emt 0:08:18]} Rae8 {[%emt 0:06:48]} 16. d4 {[%emt 0:05:35]} Ba6 {[%emt 0:07:09]} 17. d5 {[%emt 0:01:09]} exd5 {[%emt 0:04:47]} 18. exd5 {[%emt 0:00:17]} Ne5 {[%emt 0:51:29]} 19. c4 {[%emt 0:02:45]} Kg8 {[%emt 0:00:00]} 20. Qc3 {[%emt 0:03:45]} Bc8 {[%emt 0:00:00]} 21. f4 {[%emt 0:26:42]} Ng4 {[%emt 0:00:00]} 22. Nxg4 {[%emt 0:05:21]} Bxg4 {[%emt 0:00:00]} 23. Bf3 {[%emt 0:00:27]} Bxf3 {[%emt 0:00:00]} 24. Rxf3 {[%emt 0:11:19]} Nf5 {[%emt 0:00:00]} 25. Nc1 {[%emt 0:03:44]} Rxe1+ {[%emt 0:00:00]} 26. Qxe1 {[%emt 0:00:23]} Qd7 {[%emt 0:00:00]} 27. Rf2 {[%emt 0:02:22]} Nd4 {[%emt 0:00:00]} 28. Nb3 {[%emt 0:01:17]} Re8 {[%emt 0:00:00]} 29. Qd2 {[%emt 0:00:17]} Re2 {[%emt 0:00:00]} 30. Qd3 {[%emt 0:08:53]} Re1+ {[%emt 0:00:00]} 31. Rf1 {[%emt 0:03:34]} Rxf1+ {[%emt 0:00:00]} 32. Kxf1 {[%emt 0:00:29]} Qh3+ {[%emt 0:00:00]} 33. Kg1 {[%emt 0:00:01]} Nf5 {[%emt 0:00:00]} 34. Nd2 {[%emt 0:01:07]} h5 {[%emt 0:00:00]} 35. Ne4 {[%emt 0:00:39]} Nd4 {[%emt 0:00:00]} 36. Nxd6 {[%emt 0:01:53]} Qd7 {[%emt 0:00:00]} 37. Ne4 {[%emt 0:00:50]} Kg7 {[%emt 0:00:00]} 38. b4 {[%emt 0:00:32]} Qe7 {[%emt 0:00:00]} 39. bxc5 {[%emt 0:00:40]} bxc5 {[%emt 0:00:00]} 40. d6 {[%emt 0:02:52]} Qe6 {[%emt 0:01:29]} 41. Nxc5 {[%emt 0:01:14]} Qxd6 {[%emt 0:01:34]} 42. Ne4 {[%emt 0:00:18]} Qb6 {[%emt 0:00:20]} 43. c5 {[%emt 0:00:37]} Qb4 {[%emt 0:00:04]} 44. a3 {[%emt 0:02:11]} Qb2 {[%emt 0:00:19]} 45. a4 {[%emt 0:01:13]} Qa1+ {[%emt 0:01:23]} 46. Kf2 {[%emt 0:00:13]} Qa2+ {[%emt 0:00:47]} 47. Ke1 {[%emt 0:00:45]} Qxa4 {[%emt 0:00:32]} 48. Nd2 {[%emt 0:00:33]} Qa1+ {[%emt 0:01:06]} 49. Kf2 {[%emt 0:00:09]} Qb2 {[%emt 0:00:27]} 50. Ke3 {[%emt 0:00:33]} Nc2+ {[%emt 0:01:07]} 51. Ke2 {[%emt 0:00:41]} Nd4+ {[%emt 0:00:50]} 52. Ke3 {[%emt 0:00:21]} Nf5+ {[%emt 0:00:06]} 53. Ke2 {[%emt 0:00:41]} a5 {[%emt 0:00:26]} 54. Qc4 {[%emt 0:00:29]} Qf6 {[%emt 0:00:45]} 55. Ne4 {[%emt 0:00:24]} Qb2+ {[%emt 0:00:02]} 56. Nd2 {[%emt 0:00:01]} Qb7 {[%emt 0:01:59]} 57. Qc3+ {[%emt 0:01:04]} Kh7 {[%emt 0:00:04]} 58. Qxa5 {[%emt 0:00:23]} Qg2+ {[%emt 0:00:11]} 59. Kd3 {[%emt 0:00:36]} Qd5+ {[%emt 0:00:10]} 60. Kc2 {[%emt 0:00:36]} Ne3+ {[%emt 0:00:11]} 61. Kc1 {[%emt 0:00:24]} Qh1+ {[%emt 0:00:28]} 62. Kb2 {[%emt 0:00:05]} Qxh2 {[%emt 0:00:09]} 63. Kb3 {[%emt 0:00:53]} Qxg3 {[%emt 0:00:19]} 64. Qc3 {[%emt 0:00:13]} Qxf4 {[%emt 0:00:18]} 65. c6 {[%emt 0:00:01]} Nd5 {[%emt 0:00:17]} 66. Qc2 {[%emt 0:00:24]} Qb4+ {[%emt 0:00:09]} 67. Ka2 {[%emt 0:00:01]} Nc3+ {[%emt 0:00:06]} 68. Ka1 {[%emt 0:00:01]} Qa3+ {[%emt 0:00:05]} 0-1

[Event "36th National Sub Junior 2019"]
[Site "Tiruchengode"]
[Date "2019.07.17"]
[Round "11.5"]
[White "Poorna Sri M.K"]
[Black "Arushi Kotwal"]
[Result "1/2-1/2"]
[ECO "C13"]
[WhiteElo "1681"]
[BlackElo "1744"]
[Annotator "NA"]
[PlyCount "62"]
[EventDate "2019.07.09"]
[EventCountry "IND"]
[SourceTitle "playchess.com"]
[Source "ChessBase"]
[SourceQuality "1"]
[TimeControl "5400+30"]

1. e4 {[%emt 0:00:00]} e6 {[%emt 0:00:00]} 2. d4 {[%emt 0:00:00]} d5 {[%emt 0:00:00]} 3. Nc3 {[%emt 0:00:00]} Nf6 {[%emt 0:00:00]} 4. Bg5 {[%emt 0:00:09]} dxe4 {[%emt 0:00:00]} 5. Nxe4 {[%emt 0:00:34]} Be7 {[%emt 0:00:00]} 6. Bxf6 {[%emt 0:00:11]} gxf6 {[%emt 0:00:03]} 7. Nf3 {[%emt 0:00:22]} a6 {[%emt 0:00:05]} 8. Qd2 {[%emt 0:04:46]} f5 {[%emt 0:04:01]} 9. Nc3 {[%emt 0:00:42]} b5 {[%emt 0:00:47]} 10. O-O-O {[%emt 0:00:40]} Bb7 {[%emt 0:01:04]} 11. Qe3 {[%emt 0:08:16]} Bd5 {[%emt 0:05:52]} 12. Kb1 Qd6 {[%emt 0:11:49]} 13. Ne5 {[%emt 0:09:17]} Nd7 {[%emt 0:06:52]} 14. f3 {[%emt 0:11:33]} c6 {[%emt 0:12:12]} 15. Rg1 {[%emt 0:08:10]} Nxe5 {[%emt 0:11:11]} 16. dxe5 {[%emt 0:03:42]} Qc5 {[%emt 0:00:09]} 17. Nxd5 {[%emt 0:00:53]} cxd5 {[%emt 0:00:56]} 18. Qd2 {[%emt 0:03:05]} Qc7 {[%emt 0:09:25]} 19. f4 {[%emt 0:03:48]} h5 {[%emt 0:00:51]} 20. g3 {[%emt 0:06:19]} Bc5 {[%emt 0:05:13]} 21. Rg2 {[%emt 0:01:21]} Ke7 {[%emt 0:03:49]} 22. Be2 {[%emt 0:02:58]} Qb6 {[%emt 0:10:06]} 23. Qd3 {[%emt 0:04:51]} b4 {[%emt 0:03:21]} 24. Bf3 {[%emt 0:02:09]} Rh6 {[%emt 0:01:57]} 25. h3 {[%emt 0:05:54]} Rg8 {[%emt 0:08:19]} 26. Rh1 {[%emt 0:02:08]} a5 {[%emt 0:01:39]} 27. Qe2 {[%emt 0:03:38]} Rgh8 {[%emt 0:00:16]} 28. Rc1 {[%emt 0:07:48]} Be3 {[%emt 0:01:31]} 29. Re1 {[%emt 0:00:07]} Bc5 {[%emt 0:00:45]} 30. Rc1 {[%emt 0:01:41]} Be3 {[%emt 0:00:09]} 31. Re1 {[%emt 0:01:45]} Bc5 {[%emt 0:00:14]} 1/2-1/2